bitfinex-derivatives/quotes_BNBF0:USTF0_20250425
["timestamp","ask_amount","ask_price","bid_price","bid_amount"]
[1745542856835,0.28910378,603.34,601.04,0.30515381]
[1745542857037,0.28910378,603.34,601.05,0.30515381]
[1745542857239,0.28910378,603.34,601.03,0.30515381]
[1745542857433,0.28910378,603.34,601.04,0.30515381]
[1745542857632,0.28910378,603.34,601.03,0.30515381]
[1745542857837,0.28910378,603.34,601.04,0.30515381]
[1745542858034,0.28910378,603.34,601.02,1.34559358]
[1745542858035,0.28910378,603.34,601.03,0.30515381]
[1745542858238,0.28910378,603.34,601.04,0.30515381]
[1745542858539,0.28910378,603.34,601.05,0.30515381]
[1745542858735,0.28910378,603.34,601.06,0.30515381]
[1745542858939,0.28910378,603.34,601.03,0.30515381]
[1745542859142,0.28910378,603.34,601.04,0.30515381]
[1745542859335,0.28910378,603.34,601.03,0.30515381]
[1745542859642,1.26749408,603.46,601.04,0.30515381]
[1745542859841,1.26749408,603.46,601.02,0.30515381]
[1745542860042,1.26749408,603.46,601.03,0.30515381]
[1745542860241,1.26749408,603.46,601.02,0.30515381]
[1745542860441,1.26749408,603.49,601.03,0.30515381]
[1745542860636,1.26749408,603.49,601.02,0.30515381]
[1745542860836,0.28909177,603.45,601.03,0.30515381]
[1745542863043,1.26749408,603.43,601.03,0.30515381]
[1745542864443,1.26749408,603.43,601.02,0.28909177]
[1745542864743,1.26749408,603.43,601.03,0.30514602]
[1745542864940,1.26749408,603.43,601.04,0.30514602]
[1745542865143,1.26749408,603.43,601.05,0.30514602]
[1745542865340,1.26749408,603.28,601.08,1.0564898]
[1745542865537,1.26749408,603.28,601.09,0.30514602]
[1745542865742,1.26749408,603.28,601.1,0.30514602]
[1745542865940,1.26749408,603.28,601.11,0.30514602]
[1745542866136,1.26749408,603.28,601.08,1.0564898]
[1745542866342,1.26749408,603.28,601.09,0.30514359]
[1745542866643,1.26749408,603.28,601.1,0.30514359]
[1745542866844,0.28910498,603.27,601.11,0.30514359]
[1745542867039,0.28910498,603.27,601.12,0.30514359]
[1745542867243,1.26749408,603.07,601.2,1.0564898]
[1745542867442,1.26749408,603.07,601.21,0.30514359]
[1745542869845,0.28911579,603.06,601.21,0.30514359]
[1745542870245,0.28911579,603.06,601.22,1.0564898]
[1745542870440,0.28911579,603.06,601.23,0.30514359]
[1745542870947,0.28911579,603.06,601.22,1.0564898]
[1745542871246,0.28911579,603.06,601.23,0.30514093]
[1745542871550,1.26749408,603.08,601.23,0.30514093]
[1745542872648,1.26749408,603.08,601.22,1.0564898]
[1745542872947,0.28911218,603.07,601.23,0.30513915]
[1745542874249,0.28911218,603.07,601.22,1.0564898]
[1745542874447,0.28911218,603.07,601.23,0.30514045]
[1745542877549,1.26749408,603.24,601.23,0.30514045]
[1745542878751,0.28907856,603.23,601.23,0.30514045]
[1745542879752,1.26749408,603.07,601.39,1.0564898]
[1745542879945,1.26749408,603.07,601.4,0.30514045]
[1745542880846,0.28906415,603.06,601.4,0.30514045]
[1745542882251,0.28906415,603.06,601.39,1.0564898]
[1745542882552,0.28906415,603.06,601.4,0.30510012]
[1745542883554,1.26749408,603.17,601.4,0.30510012]
[1745542883950,0.28905215,603.05,601.4,0.30510012]
[1745542884150,1.26749408,603.17,601.4,0.30510012]
[1745542885452,1.26749408,603.17,601.11,0.28905215]
[1745542885453,1.26749408,603.16,601.38,1.0564898]
[1745542885751,1.26749408,603.16,601.39,0.30510184]
[1745542885953,0.28905455,603.15,601.39,0.30510184]
[1745542886552,1.26749408,603.16,601.39,0.30510184]
[1745542887749,0.28902574,603.15,601.39,0.30510184]
[1745542888653,0.28902574,603.15,601.37,0.30510184]
[1745542889554,1.26749408,603.41,601.37,0.30510184]
[1745542889854,0.28899574,603.16,601.37,0.30510184]
[1745542890049,1.26749408,603.41,601.37,0.30510184]
[1745542890855,0.28899334,603.4,601.37,0.30510184]
[1745542892055,0.28899334,603.4,601.38,0.30504879]
[1745542892354,0.28899334,603.4,601.39,0.30504879]
[1745542892557,1.26749408,603.52,601.39,1.375]
[1745542892754,1.26749408,603.52,601.4,0.30504879]
[1745542893855,0.28897654,603.51,601.4,0.30504879]
[1745542894757,1.26749408,603.41,601.4,0.30504879]
[1745542896359,1.26749408,603.49,601.4,0.30504879]
[1745542896960,0.28898014,603.48,601.4,0.30504879]
[1745542898561,1.26749408,603.49,601.4,0.30504879]
[1745542899162,1.26749408,603.59,601.4,0.30504879]
[1745542899861,0.28896814,603.58,601.4,0.30504879]
[1745542901566,1.26749408,603.59,601.4,0.30504879]
[1745542902064,0.28896814,603.58,601.4,0.30504879]
[1745542902261,1.26749408,603.51,601.4,0.30504879]
[1745542903166,1.26749408,603.51,601.39,1.375]
[1745542903362,1.26749408,603.51,601.4,0.30504567]
[1745542904167,1.26749408,603.55,601.4,0.30504567]
[1745542905766,0.28897294,603.54,601.4,0.30504567]
[1745542906972,1.26749408,603.52,601.4,0.30504567]
[1745542908670,1.26749408,603.5,601.4,0.30504567]
[1745542911276,1.26749408,603.5,601.39,1.375]
[1745542911477,1.26749408,603.5,601.4,0.30506175]
[1745542911878,0.28898854,603.49,601.4,0.30506175]
[1745542912874,0.28898854,603.49,601.39,1.375]
[1745542913075,0.28898854,603.49,601.4,0.30506154]
[1745542913580,1.26749408,603.53,601.4,0.30506154]
[1745542913879,0.28898494,603.48,601.4,0.30506154]
[1745542914380,0.28898494,603.48,601.4,1.30706154]
[1745542914574,0.28898494,603.48,601.4,1.002]
[1745542914777,0.28898494,603.48,601.41,0.30506156]
[1745542916181,0.28898494,603.48,601.4,1.002]
[1745542916477,0.28898494,603.48,601.41,0.30505564]
[1745542916675,1.26749408,603.52,601.41,0.30505564]
[1745542916874,0.28898494,603.47,601.41,0.30505564]
[1745542919686,1.26749408,603.52,601.41,0.30505564]
[1745542920485,2.15313798,604.27,601.41,0.30505564]
[1745542920486,1.26749408,603.39,601.43,1.0564898]
[1745542920686,1.26749408,603.39,601.44,0.30505564]
[1745542920889,0.28899694,603.38,601.45,0.30505378]
[1745542921079,0.28899694,603.38,601.44,0.30505378]
[1745542921284,0.28899694,603.38,601.45,0.30505378]
[1745542921581,0.28899694,603.38,601.46,0.30505378]
[1745542921786,0.28899694,603.38,601.44,0.30505378]
[1745542921983,0.28899694,603.38,601.47,0.30505378]
[1745542922187,0.28899694,603.38,601.48,0.30505259]
[1745542922390,0.28899694,603.38,601.44,0.30505259]
[1745542922585,1.26749408,603.39,601.45,0.30505259]
[1745542922788,1.26749408,603.26,601.52,1.0564898]
[1745542922983,1.26749408,603.26,601.53,0.30505538]
[1745542923786,0.28900174,603.25,601.53,0.30505538]
[1745542924491,0.28900174,603.25,601.53,1.71105538]
[1745542924696,0.28900174,603.25,601.54,0.30505538]
[1745542924886,1.26749408,603.17,601.56,1.0564898]
[1745542925083,1.26749408,603.17,601.57,0.30505538]
[1745542925284,1.26749408,603.17,601.56,1.0564898]
[1745542925487,1.26749408,603.17,601.57,0.30506746]
[1745542926789,0.28902694,603.16,601.57,0.30506746]
[1745542928387,0.28902694,603.16,601.53,1.406]
[1745542928588,1.26749408,603.17,601.53,1.406]
[1745542928784,0.28904975,603.15,601.53,1.406]
[1745542934591,1.26749408,603.45,601.53,1.406]
[1745542935889,0.28898254,603.44,601.53,1.406]
[1745542936284,0.28898254,603.44,601.53,2.864]
[1745542938192,0.28898254,603.44,601.54,0.30506787]
[1745542940592,1.26749408,603.45,601.54,0.30506787]
[1745542940985,0.28898254,603.43,601.54,0.30506787]
[1745542941187,0.28898254,603.43,601.55,0.30506814]
[1745542941391,0.28898254,603.43,601.56,0.30506814]
[1745542941691,0.28898254,603.43,601.57,0.30506814]
[1745542941887,1.26749408,603.08,601.55,1.0564898]
[1745542942086,1.26749408,603.08,601.56,0.30506814]
[1745542942693,1.26749408,603.08,601.55,1.0564898]
[1745542942893,1.26749408,603.08,601.56,1.63506814]
[1745542943087,1.26749408,603.08,601.57,0.30506814]
[1745542944194,1.26749408,603.08,601.56,1.33]
[1745542944387,1.26749408,603.08,601.57,0.30507801]
[1745542944591,1.26749408,603.25,601.57,0.30507801]
[1745542945394,1.26749408,603.25,601.58,1.314]
[1745542946795,1.26749408,603.23,601.58,1.314]
[1745542949498,0.28901734,603.24,601.58,1.314]
[1745542949690,1.26749408,603.38,601.58,1.314]
[1745542950895,0.28900174,603.37,601.58,1.314]
[1745542952297,1.26749408,603.29,601.58,1.314]
[1745542952796,0.28901254,603.28,601.58,1.314]
[1745542953396,0.28901254,603.28,601.59,1.57]
[1745542958599,1.26749408,603.43,601.59,1.57]
[1745542959300,1.26749408,603.28,601.59,1.57]
[1745542959799,0.28902934,603.27,601.59,1.57]
[1745542961601,1.26749408,603.28,601.59,1.57]
[1745542962702,1.26749408,603.2,601.59,1.57]
[1745542963203,1.26749408,603.2,601.6,0.30510106]
[1745542963603,1.26749408,603.2,601.59,1.57]
[1745542964904,0.28903895,603.19,601.59,1.57]
[1745542967614,1.26749408,603.3,601.59,1.57]
[1745542967800,0.28902454,603.18,601.59,1.57]
[1745542968107,1.26749408,603.3,601.59,1.57]
[1745542968907,2.15313798,603.43,601.59,1.57]
[1745542968908,1.55652102,603.29,601.59,1.57]
[1745542970606,1.26749408,603.29,601.59,1.57]
[1745542970804,0.28903534,603.28,601.59,1.57]
[1745542971602,0.28903534,603.28,601.6,1.448]
[1745542973608,1.26749408,604.04,601.6,1.448]
[1745542973808,0.28894415,603.27,601.6,1.448]
[1745542974112,1.26749408,604.04,601.6,1.448]
[1745542974808,0.28894415,604.03,601.6,1.448]
[1745542976710,1.26749408,604.11,601.6,1.448]
[1745542977014,0.28893575,604.02,601.6,1.448]
[1745542977307,1.26749408,604.11,601.6,1.448]
[1745542977512,1.26749408,604.11,601.61,1.165]
[1745542977912,0.28893575,604.1,601.61,1.165]
[1745542978813,1.26749408,603.94,601.61,1.165]
[1745542980013,0.28895495,603.93,601.61,1.165]
[1745542982222,1.26749408,603.46,601.61,1.165]
[1745542983015,0.28901254,603.45,601.61,1.165]
[1745542985515,1.26749408,603.46,601.61,1.165]
[1745542985716,1.26749408,603.16,601.61,1.165]
[1745542986613,1.26749408,603.16,601.62,1.33]
[1745542988119,1.26749408,603.16,601.63,1.371]
[1745542988815,0.28905815,603.15,601.63,1.371]
[1745542989021,1.26749408,603.04,601.63,1.371]
[1745542991021,0.28905815,603.15,601.63,1.371]
[1745542991618,1.26749408,603.31,601.63,1.371]
[1745542992021,0.28903054,603.14,601.63,1.371]
[1745542992222,1.26749408,603.31,601.64,1.517]
[1745542992922,0.28902934,603.3,601.64,1.517]
[1745542994624,1.26749408,603.31,601.64,1.517]
[1745542994925,0.28902934,603.29,601.64,1.517]
[1745542996327,1.26749408,603.18,601.64,1.517]
[1745542998829,0.28904255,603.17,601.64,1.517]
[1745543000720,1.26749408,603.18,601.64,1.517]
[1745543000925,0.28904255,603.16,601.64,1.517]
[1745543001124,1.26749408,603.0,601.64,1.517]
[1745543003333,1.26749408,603.0,601.65,1.125]
[1745543003834,1.26749408,602.97,601.65,1.125]
[1745543007036,1.26749408,602.89,601.65,1.125]
[1745543008136,1.26749408,602.89,601.65,2.425]
[1745543010242,0.28905215,603.01,601.65,2.425]
[1745543012534,1.26749408,603.3,601.65,2.425]
[1745543012940,1.26749408,603.41,601.65,2.425]
[1745543013840,0.28896814,603.4,601.65,2.425]
[1745543015641,1.26749408,603.41,601.65,2.425]
[1745543015840,0.28897534,603.39,601.65,2.425]
[1745543018539,1.26749408,603.5,601.65,2.425]
[1745543018845,0.28897654,603.38,601.65,2.425]
[1745543019042,1.26749408,603.5,601.65,2.425]
[1745543019942,0.28897894,603.49,601.65,2.425]
[1745543020338,0.28897894,603.49,601.65,3.496]
[1745543020738,1.26749408,603.41,601.65,3.496]
[1745543022843,0.28898974,603.4,601.65,3.496]
[1745543024643,1.26749408,603.41,601.65,3.496]
[1745543024838,1.26749408,603.37,601.65,3.496]
[1745543027955,1.26749408,603.32,601.65,3.496]
[1745543031255,0.28898014,603.36,601.65,3.496]
[1745543033554,1.26749408,603.39,601.65,3.496]
[1745543034858,0.28896454,603.38,601.65,3.496]
[1745543035660,0.28896454,603.38,601.65,4.726]
[1745543036657,1.26749408,603.48,601.65,4.726]
[1745543036861,0.28895495,603.37,601.65,4.726]
[1745543037161,1.26749408,603.48,601.65,4.726]
[1745543037862,0.28895495,603.47,601.65,4.726]
[1745543038263,1.26749408,603.32,601.65,4.726]
[1745543040066,0.28897414,603.31,601.65,4.726]
[1745543042566,1.26749408,603.48,601.65,4.726]
[1745543042865,0.28895495,603.3,601.65,4.726]
[1745543043167,1.26749408,603.33,601.65,4.726]
[1745543043860,0.28897294,603.32,601.65,4.726]
[1745543045166,1.26749408,603.3,601.65,4.726]
[1745543047570,1.26749408,603.31,601.65,4.726]
[1745543050074,0.28897294,603.32,601.65,4.726]
[1745543051576,1.26749408,603.42,601.65,4.726]
[1745543051874,0.28896214,603.31,601.65,4.726]
[1745543052076,1.26749408,603.26,601.65,4.726]
[1745543052974,0.28898134,603.25,601.65,4.726]
[1745543054375,0.28898134,603.25,601.66,0.3050502]
[1745543054773,1.26749408,603.31,601.66,0.3050502]
[1745543054968,0.28898134,603.24,601.66,0.3050502]
[1745543057077,1.26749408,603.19,601.66,0.3050502]
[1745543057278,1.26749408,603.19,601.66,1.7500502]
[1745543057479,1.26749408,603.19,601.66,1.445]
[1745543057677,1.26749408,603.19,601.67,0.30504981]
[1745543058379,1.26749408,603.19,601.67,1.58604981]
[1745543058580,1.26749408,603.19,601.68,0.30504981]
[1745543058782,1.26749408,603.15,601.67,1.281]
[1745543060781,1.26749408,603.19,601.67,1.281]
[1745543061681,1.26749408,603.19,601.68,0.3050567]
[1745543061874,0.28898734,603.18,601.68,0.3050567]
[1745543062483,0.28898734,603.18,601.67,1.281]
[1745543062877,0.28898734,603.18,601.68,0.305056]
[1745543063583,1.26749408,603.08,601.68,0.305056]
[1745543064686,1.26749408,603.08,601.67,1.281]
[1745543066485,0.28898734,603.18,601.67,1.281]
[1745543066683,1.26749408,603.25,601.67,1.281]
[1745543067984,0.28898014,603.24,601.65,1.23]
[1745543069583,1.26749408,603.3,601.49,1.0564898]
[1745543069781,1.26749408,603.3,601.5,0.30505161]
[1745543069984,0.28897654,603.23,601.5,0.30505161]
[1745543071087,0.28897654,603.23,601.49,1.0564898]
[1745543071286,0.28897654,603.23,601.5,0.30505312]
[1745543072590,1.26749408,603.24,601.5,0.30505312]
[1745543072891,0.28900294,603.22,601.5,0.30505312]
[1745543074592,1.55649702,603.22,601.5,1.36154292]
[1745543074792,1.55649702,603.22,601.51,0.30505312]
[1745543075691,1.26749408,603.22,601.51,0.30505312]
[1745543077095,0.28900414,603.21,601.51,0.30505312]
[1745543077487,0.28900414,603.21,601.51,1.36154292]
[1745543077691,0.28900414,603.21,601.52,0.30505312]
[1745543078593,1.26749408,603.22,601.52,0.30505312]
[1745543079895,0.28900294,603.21,601.52,0.30505312]
[1745543080495,0.28900294,603.21,601.49,0.30505312]
[1745543080895,0.28900294,603.21,601.48,1.0564898]
[1745543081096,0.28900294,603.21,601.49,0.30505756]
[1745543081695,1.26749408,603.33,601.49,0.30505756]
[1745543082997,0.28899334,603.32,601.49,0.30505756]
[1745543083193,1.55648742,603.32,601.49,0.30505756]
[1745543084594,1.26749408,603.32,601.49,0.30505756]
[1745543085894,0.28899454,603.31,601.5,0.30505786]
[1745543086097,0.28899454,603.31,601.49,0.30505786]
[1745543086293,0.28899454,603.31,601.5,0.30505786]
[1745543086494,0.28899454,603.31,601.49,0.30505786]
[1745543086996,1.26749408,603.25,601.51,1.0564898]
[1745543087195,1.26749408,603.25,601.52,0.30505786]
[1745543089000,0.28901614,603.24,601.52,0.30505786]
[1745543089705,1.26749408,603.19,601.55,1.0564898]
[1745543089900,1.26749408,603.19,601.56,0.30505786]
[1745543091998,0.28901854,603.18,601.56,0.30505786]
[1745543093206,0.28901854,603.18,601.55,1.0564898]
[1745543093405,0.28901854,603.18,601.56,0.30508345]
[1745543093599,0.28901854,603.18,601.52,0.30508345]
[1745543093805,1.26749408,603.22,601.53,0.30508345]
[1745543094005,1.26749408,603.22,601.51,1.0564898]
[1745543094199,1.26749408,603.22,601.52,0.30507789]
[1745543094906,0.28903414,603.21,601.52,0.30507789]
[1745543095707,1.26749408,603.2,601.52,0.30507789]
[1745543096002,1.26749408,603.2,601.53,0.30507789]
[1745543096207,1.26749408,603.2,601.48,0.30507789]
[1745543096908,0.28904135,603.19,601.48,0.30507789]
[1745543098809,0.28904135,603.19,601.49,0.30507789]
[1745543099010,0.28904135,603.19,601.46,0.30507789]
[1745543099211,0.28904135,603.19,601.47,0.30507789]
[1745543099411,0.28904135,603.19,601.46,0.30507789]
[1745543100511,0.28904135,603.19,601.45,1.0564898]
[1745543100712,0.28904135,603.19,601.46,0.30507649]
[1745543102513,0.28904135,603.19,601.46,1.36156629]
[1745543102713,0.28904135,603.19,601.47,0.30507649]
[1745543103315,0.28904135,603.19,601.46,1.0564898]
[1745543103610,0.28904135,603.19,601.47,0.30509352]
[1745543105515,0.28904135,603.19,601.48,0.30509352]
[1745543105715,1.26749408,603.32,601.36,0.30509352]
[1745543105917,1.26749408,603.32,601.37,0.30509352]
[1745543106110,1.26749408,603.32,601.36,0.30509352]
[1745543106516,1.26749408,603.32,601.35,1.0564898]
[1745543106718,1.26749408,603.32,601.36,0.30509379]
[1745543106916,0.28904375,603.31,601.36,0.30509379]
[1745543107718,1.26749408,603.25,601.36,0.30509379]
[1745543107918,1.26749408,603.25,601.38,1.0564898]
[1745543108319,1.26749408,603.25,601.39,0.30509352]
[1745543111931,0.28904855,603.24,601.39,0.30509352]
[1745543112316,0.28904855,603.24,601.35,0.30509352]
[1745543114823,0.28904855,603.24,601.36,0.30509773]
[1745543115018,0.28904855,603.24,601.21,1.642]
[1745543115019,1.26749408,603.21,601.39,1.0564898]
[1745543115216,1.26749408,603.21,601.4,0.30509773]
[1745543115925,1.26749408,603.21,601.4,1.29609773]
[1745543116126,1.26749408,603.21,601.41,0.30509773]
[1745543118627,2.15313798,603.84,601.41,0.30509773]
[1745543118628,1.26749408,603.22,601.41,0.30509773]
[1745543118928,0.28906295,603.2,601.41,0.30509773]
[1745543120628,1.26749408,603.22,601.41,0.30509773]
[1745543120927,1.26749408,603.25,601.41,0.30509773]
[1745543121129,1.26749408,603.25,601.4,0.991]
[1745543121326,1.26749408,603.25,601.41,0.30512039]
[1745543121823,1.26749408,603.25,601.4,0.991]
[1745543122028,0.28907856,603.24,601.4,0.991]
[1745543123830,1.26749408,603.19,601.4,0.991]
[1745543126532,0.28907856,603.24,601.4,0.991]
[1745543126731,1.26749408,603.34,601.4,0.991]
[1745543127027,0.28910258,603.23,601.4,0.991]
[1745543127231,1.26749408,603.34,601.4,0.991]
[1745543129233,1.26749408,603.32,601.4,0.991]
[1745543132237,1.55660386,603.33,601.4,0.991]
[1745543132638,1.26749408,603.33,601.4,0.991]
[1745543132932,0.28911098,603.32,601.4,0.991]
[1745543134838,1.26749408,603.02,601.4,0.991]
[1745543136838,1.26749408,603.02,601.37,1.495]
[1745543137038,0.28916504,603.01,601.37,1.495]
[1745543140143,0.28916504,603.01,601.35,0.946]
[1745543141742,1.26749408,603.37,601.35,0.946]
[1745543141945,0.289129,603.0,601.35,0.946]
[1745543142243,1.26749408,603.37,601.35,0.946]
[1745543142949,0.289129,603.36,601.35,0.946]
[1745543144644,1.26749408,603.38,601.35,0.946]
[1745543145847,1.26749408,603.36,601.35,0.946]
[1745543146647,1.26749408,603.36,601.24,1.296]
[1745543147949,0.28914341,603.35,601.24,1.296]
[1745543148750,1.26749408,603.1,601.24,1.296]
[1745543150551,1.26749408,603.04,601.24,1.296]
[1745543151148,0.28918186,603.03,601.24,1.296]
[1745543153548,1.26749408,603.02,601.24,1.296]
[1745543154957,0.28918186,603.01,601.24,1.296]
[1745543156753,1.26749408,603.06,601.24,1.296]
[1745543156957,0.28916984,603.0,601.24,1.296]
[1745543159060,1.26749408,602.87,601.24,1.296]
[1745543159359,1.26749408,602.87,601.25,0.30526456]
[1745543160859,1.26749408,602.87,601.24,1.296]
[1745543161060,0.28919267,602.86,601.25,0.30526667]
[1745543161856,1.26749408,602.75,601.25,0.30526667]
[1745543162054,1.26749408,602.75,601.24,1.296]
[1745543162254,1.26749408,602.75,601.25,0.30527176]
[1745543163766,1.26749408,602.75,601.24,1.296]
[1745543163963,1.26749408,602.75,601.25,0.3052742]
[1745543164462,1.26749408,602.7,601.24,1.296]
[1745543164660,1.26749408,602.7,601.25,0.30529163]
[1745543165457,1.26749408,602.7,601.26,0.30529334]
[1745543165662,1.26749408,602.7,601.24,1.296]
[1745543165663,1.26749408,602.7,601.25,0.30529334]
[1745543165959,1.26749408,602.7,601.24,1.296]
[1745543166168,1.26749408,602.7,601.25,0.30529433]
[1745543167061,0.28922271,602.69,601.25,0.30529433]
[1745543168061,0.28922271,602.69,601.24,1.296]
[1745543168365,0.28922271,602.69,601.25,0.30529819]
[1745543168563,1.26749408,602.6,601.25,0.30529819]
[1745543169067,0.28923473,602.59,601.25,0.30529819]
[1745543169266,0.28923473,602.59,601.24,1.296]
[1745543169862,0.28923473,602.59,601.05,1.0564898]
[1745543170067,0.28923473,602.59,601.06,0.30529792]
[1745543171274,0.28923473,602.59,601.09,1.0564898]
[1745543171569,0.28923473,602.59,601.1,0.30529792]
[1745543171769,1.26749408,602.67,601.1,0.30529792]
[1745543172669,1.26749408,602.67,601.11,1.452]
[1745543172868,1.26749408,602.67,601.12,0.30529792]
[1745543173063,0.28925156,602.66,601.12,0.30529792]
[1745543173267,0.28925156,602.66,601.13,1.416]
[1745543173467,0.28925156,602.66,601.14,0.30529792]
[1745543173667,1.55674564,602.66,601.14,0.30529792]
[1745543174670,1.26749408,602.66,601.14,0.30529792]
[1745543174970,1.26749408,602.66,601.13,1.416]
[1745543175972,0.28926238,602.65,601.13,1.416]
[1745543177676,1.26749408,602.8,601.13,1.416]
[1745543178977,0.28924555,602.79,601.13,1.416]
[1745543180678,1.26749408,602.84,601.13,1.416]
[1745543181974,0.28924074,602.83,601.13,1.416]
[1745543184783,0.28924074,602.83,601.14,0.30531532]
[1745543186679,1.26749408,602.87,601.14,0.30531532]
[1745543186879,1.26749408,602.87,601.13,1.416]
[1745543186880,1.26749408,602.76,601.13,1.416]
[1745543187079,1.26749408,602.76,601.14,0.30532101]
[1745543188482,1.26749408,602.76,601.13,1.416]
[1745543189482,0.28923714,602.82,601.13,1.416]
[1745543189483,1.26749408,602.74,601.13,1.416]
[1745543189983,0.28925276,602.73,601.13,1.416]
[1745543192285,1.26749408,602.7,601.13,1.416]
[1745543192683,1.26749408,602.7,601.14,1.477]
[1745543194888,0.28925276,602.73,601.14,1.477]
[1745543195686,1.26749408,602.75,601.14,1.477]
[1745543195986,1.26749408,602.75,601.15,1.03]
[1745543196386,1.26749408,602.75,601.15,2.343]
[1745543196983,0.28924916,602.74,601.15,2.343]
[1745543197689,1.26749408,602.71,601.15,2.343]
[1745543198987,0.28925397,602.7,601.15,2.343]
[1745543201689,1.26749408,602.8,601.15,2.343]
[1745543202686,1.26749408,602.8,601.16,0.30526921]
[1745543203091,0.28920949,602.79,601.15,2.343]
[1745543203291,0.28920949,602.79,601.16,0.30526383]
[1745543204689,1.26749408,603.07,601.15,3.286]
[1745543204894,1.26749408,603.07,601.16,0.3052598]
[1745543205696,1.26749408,602.97,601.16,0.3052598]
[1745543206795,1.26749408,602.97,601.15,3.286]
[1745543207097,1.26749408,603.03,601.15,3.286]
[1745543207996,0.28918186,603.02,601.15,3.286]
[1745543210697,1.26749408,603.07,601.15,3.286]
[1745543211998,0.28917705,603.06,601.15,3.286]
[1745543212699,1.55667113,603.06,601.15,3.286]
[1745543213702,1.26749408,603.06,601.15,3.286]
[1745543213997,0.28917825,603.05,601.15,3.286]
[1745543216608,0.28917825,603.05,601.16,0.30526568]
[1745543216810,1.26749408,603.14,601.16,0.30526568]
[1745543217009,1.26749408,603.14,601.15,3.286]
[1745543217207,1.26749408,603.14,601.16,0.30526541]
[1745543217506,1.26749408,603.16,601.16,0.30526541]
[1745543218009,0.28916624,603.15,601.16,0.30526541]
[1745543219409,1.26749408,603.13,601.16,0.30526541]
[1745543221015,0.28916984,603.12,601.16,0.30526541]
[1745543221306,0.28916984,603.12,601.16,1.58326541]
[1745543221511,0.28916984,603.12,601.17,0.30526541]
[1745543221708,0.28916984,603.12,601.16,1.278]
[1745543221906,0.28916984,603.12,601.17,0.30526329]
[1745543222304,0.28916984,603.12,601.16,1.278]
[1745543222504,1.26749408,603.08,601.17,0.3052635]
[1745543223211,1.26749408,603.08,601.16,1.278]
[1745543223411,1.26749408,603.08,601.17,0.3052637]
[1745543224006,0.28917465,603.07,601.17,0.3052637]
[1745543224908,1.26749408,603.0,601.17,1.4682637]
[1745543225113,1.26749408,603.0,601.18,0.3052637]
[1745543226015,0.28918306,602.99,601.18,0.3052637]
[1745543226413,0.28918306,602.99,601.17,1.163]
[1745543226613,0.28918306,602.99,601.18,0.30526348]
[1745543227317,1.26749408,602.93,601.18,0.30526348]
[1745543229517,1.26749408,602.93,601.17,1.163]
[1745543229711,1.26749408,602.93,601.18,0.30526556]
[1745543229914,1.26749408,602.95,601.18,0.30526556]
[1745543231016,1.26749408,602.95,601.17,1.163]
[1745543231211,1.26749408,602.95,601.18,0.3052519]
[1745543232016,1.26749408,602.94,601.18,0.3052519]
[1745543232616,1.26749408,602.94,601.17,1.163]
[1745543232815,1.26749408,602.94,601.18,0.30525209]
[1745543234313,1.26749408,602.8,601.18,0.30525209]
[1745543235717,1.26749408,602.8,601.17,1.163]
[1745543236017,1.26749408,602.8,601.18,0.30516994]
[1745543237018,0.28915182,602.88,601.18,0.30516994]
[1745543237220,0.28915182,602.88,601.17,1.163]
[1745543237514,0.28915182,602.88,601.18,0.30516637]
[1745543237719,1.26749408,603.17,601.18,0.30516637]
[1745543239021,0.28910738,603.16,601.18,0.30516637]
[1745543239225,0.28910738,603.16,601.19,0.30516637]
[1745543239422,0.28910738,603.16,601.18,0.30516637]
[1745543239621,0.28910738,603.16,601.19,0.30516637]
[1745543239823,0.28910738,603.16,601.18,0.30516637]
[1745543240022,0.28910738,603.16,601.19,0.30516637]
[1745543240221,0.28910738,603.16,601.18,0.30516637]
[1745543240420,0.28910738,603.16,601.2,0.30516637]
[1745543240620,0.28910738,603.16,601.21,0.30516637]
[1745543240921,1.26749408,603.17,601.22,0.30516637]
[1745543241122,1.26749408,603.17,601.23,0.30516637]
[1745543241423,1.26749408,603.17,601.24,0.30516637]
[1745543241615,1.26749408,603.17,601.18,0.30516637]
[1745543241821,1.26749408,603.17,601.19,0.30516637]
[1745543242018,1.26749408,603.17,601.17,1.163]
[1745543242019,0.28910258,603.16,601.2,0.30516637]
[1745543242221,0.28910258,603.16,601.21,0.30516637]
[1745543242424,0.28910258,603.16,601.17,1.163]
[1745543242425,0.28910258,603.16,601.22,0.30516637]
[1745543242618,0.28910258,603.16,601.23,0.30516637]